fUST/lending_fUST_20250220
["ID","MTS","AMOUNT","RATE_DAILY","PERIOD"]
[353682797,1739988651015,-709.3,0.00014191,2]
[353682800,1739988651025,-500.0,0.00014191,2]
[353682802,1739988651035,-634.2,0.00014191,2]
[353682803,1739988651046,-500.0,0.00014191,2]
[353682806,1739988651055,-500.0,0.00014191,2]
[353682807,1739988651065,-504.41,0.00014191,2]
[353682809,1739988651075,-589.83,0.00014191,2]
[353682811,1739988651084,-23447.01,0.00014191,2]
[353682813,1739988651094,-500.0,0.00014191,2]
[353682815,1739988651103,-903.6,0.00014191,2]
[353682817,1739988651112,-500.0,0.00014191,2]
[353682819,1739988651122,-661.75,0.00014191,2]
[353682821,1739988651132,-560.56,0.00014191,2]
[353682823,1739988651142,-952.78,0.00014191,2]
[353682825,1739988651152,-2315.57,0.00014191,2]
[353682827,1739988651163,-3025.53,0.00014191,2]
[353682829,1739988651175,-1175.6,0.00014191,2]
[353682831,1739988651185,-500.0,0.00014191,2]
[353682833,1739988651196,-500.0,0.00014191,2]
[353682836,1739988651207,-979.27,0.00014191,2]
[353682838,1739988651217,-500.0,0.00014191,2]
[353682840,1739988651228,-8610.83,0.00014191,2]
[353682842,1739988651238,-500.0,0.00014191,2]
[353682844,1739988651248,-587.77,0.00014191,2]
[353682846,1739988651258,-981.23,0.00014191,2]
[353682848,1739988651269,-1054.51,0.00014191,2]
[353682850,1739988651279,-500.0,0.00014191,2]
[353682861,1739988651378,-500.0,0.00014191,2]
[353682863,1739988651388,-500.0,0.00014191,2]
[353682865,1739988651401,-500.0,0.00014191,2]
[353682867,1739988651414,-500.0,0.00014191,2]
[353682869,1739988651428,-500.0,0.00014191,2]
[353682871,1739988651439,-707.81,0.00014191,2]
[353682874,1739988651450,-2015.79,0.00014191,2]
[353682876,1739988651461,-500.0,0.00014191,2]
[353682878,1739988651472,-500.0,0.00014191,2]
[353682880,1739988651482,-1163.81,0.00014191,2]
[353682882,1739988651491,-500.0,0.00014191,2]
[353682884,1739988651501,-500.0,0.00014191,2]
[353682886,1739988651510,-500.0,0.00014191,2]
[353682887,1739988651520,-2382.21,0.00014191,2]
[353682890,1739988651531,-6044.15,0.00014191,2]
[353682892,1739988651541,-1011.0,0.00014191,2]
[353682894,1739988651553,-500.0,0.00014191,2]
[353682895,1739988651564,-1268.26,0.00014191,2]
[353682898,1739988651575,-500.0,0.00014191,2]
[353682900,1739988651587,-2033.33,0.00014191,2]
[353682902,1739988651598,-500.0,0.00014191,2]
[353682904,1739988651608,-500.0,0.00014191,2]
[353682906,1739988651619,-1189.52,0.00014191,2]
[353682908,1739988651629,-2055.1,0.00014191,2]
[353682910,1739988651640,-500.0,0.00014191,2]
[353682912,1739988651651,-1101.67,0.00014191,2]
[353682914,1739988651668,-1533.09,0.00014191,2]
[353682916,1739988651679,-7584.55,0.00014191,2]
[353682918,1739988651688,-447.57909676,0.00014191,2]
[353682920,1739988651698,-2979.97,0.00014191,2]
[353682922,1739988651712,-500.0,0.00014191,2]
[353682924,1739988651722,-500.0,0.00014191,2]
[353682926,1739988651733,-633.93,0.00014191,2]
[353682928,1739988651746,-703.24,0.00014191,2]
[353682930,1739988651757,-751.62,0.00014191,2]
[353682932,1739988651768,-151.0,0.000142,2]
[353682934,1739988651778,-151.0,0.000142,2]
[353682936,1739988651790,-151.0,0.000142,2]
[353682938,1739988651800,-151.0,0.000142,2]
[353682940,1739988651811,-151.0,0.000142,2]
[353682942,1739988651820,-192.0,0.00014215,2]
[353682944,1739988651831,-500.0,0.00014221,2]
[353682946,1739988651842,-1000.0,0.00014221,2]
[353682948,1739988651853,-500.0,0.00014221,2]
[353682951,1739988651864,-1000.0,0.00014221,2]
[353682952,1739988651874,-500.80430822,0.00014221,2]
[353682955,1739988651884,-500.57312837,0.00014221,2]
[353682957,1739988651894,-1000.0,0.00014221,2]
[353682959,1739988651905,-500.50517202,0.00014247,2]
[353682961,1739988651915,-905.76027442,0.00014256,2]
[353682963,1739988651926,-2571.11782864,0.00014256,2]
[353682965,1739988651940,-2571.11782864,0.00014256,2]
[353682967,1739988651951,-2571.11782864,0.00014256,2]
[353682969,1739988651962,-2571.11782864,0.00014256,2]
[353682971,1739988651973,-2571.11782864,0.00014256,2]
[353682973,1739988651983,-2571.11782864,0.00014256,2]
[353682975,1739988651993,-2571.11782864,0.00014256,2]
[353682977,1739988652003,-2571.11782864,0.00014256,2]
[353682979,1739988652013,-2571.11782864,0.00014256,2]
[353682981,1739988652024,-2571.11782864,0.00014256,2]
[353682983,1739988652034,-2571.11782864,0.00014256,2]
[353682985,1739988652044,-2571.11782864,0.00014256,2]
[353682987,1739988652054,-2571.11782864,0.00014256,2]
[353682989,1739988652064,-2571.11782864,0.00014256,2]
[353682991,1739988652074,-2571.11782864,0.00014256,2]
[353682993,1739988652084,-2571.11782864,0.00014256,2]
[353682995,1739988652094,-2571.11782864,0.00014256,2]
[353682997,1739988652107,-2571.11782864,0.00014256,2]
[353682999,1739988652117,-2571.11782864,0.00014256,2]
[353683001,1739988652127,-2571.11,0.00014256,2]
[353683003,1739988652137,-210.33200666,0.00014256,2]
[353683005,1739988652149,-210.33200666,0.00014256,2]
[353683007,1739988652161,-210.33200666,0.00014256,2]
[353683009,1739988652172,-210.33200666,0.00014256,2]
[353683011,1739988652184,-210.33200666,0.00014256,2]
[353683013,1739988652194,-210.33200666,0.00014256,2]
[353683015,1739988652204,-210.33200666,0.00014256,2]
[353683017,1739988652215,-210.33200666,0.00014256,2]
[353683019,1739988652225,-210.33200666,0.00014256,2]
[353683021,1739988652235,-210.33200666,0.00014256,2]
[353683023,1739988652245,-210.33200666,0.00014256,2]
[353683025,1739988652255,-210.33200666,0.00014256,2]
[353683027,1739988652266,-210.33200666,0.00014256,2]
[353683029,1739988652276,-210.33200666,0.00014256,2]
[353683031,1739988652287,-210.33200666,0.00014256,2]
[353683033,1739988652297,-210.33200666,0.00014256,2]
[353683035,1739988652306,-210.33200666,0.00014256,2]
[353683037,1739988652317,-210.33200666,0.00014256,2]
[353683039,1739988652328,-210.33200666,0.00014256,2]
[353683041,1739988652338,-210.33,0.00014256,2]
[353683043,1739988652349,-451.38364222,0.00014256,2]
[353683045,1739988652359,-451.38364222,0.00014256,2]
[353683047,1739988652371,-451.38364222,0.00014256,2]
[353683049,1739988652382,-451.38364222,0.00014256,2]
[353683051,1739988652392,-451.38364222,0.00014256,2]
[353683053,1739988652402,-451.38364222,0.00014256,2]
[353683055,1739988652413,-451.38364222,0.00014256,2]
[353683057,1739988652425,-451.38364222,0.00014256,2]
[353683059,1739988652434,-451.38364222,0.00014256,2]
[353683061,1739988652445,-451.38364222,0.00014256,2]
[353683063,1739988652455,-451.38364222,0.00014256,2]
[353683065,1739988652466,-451.38364222,0.00014256,2]
[353683067,1739988652476,-451.38364222,0.00014256,2]
[353683069,1739988652487,-451.38364222,0.00014256,2]
[353683072,1739988652497,-451.38364222,0.00014256,2]
[353683074,1739988652507,-451.38364222,0.00014256,2]
[353683076,1739988652517,-451.38364222,0.00014256,2]
[353683078,1739988652528,-451.38364222,0.00014256,2]
[353683080,1739988652538,-451.38364222,0.00014256,2]
[353683082,1739988652548,-451.38,0.00014256,2]
[353683084,1739988652557,-478.38,0.00014273,2]
[353683086,1739988652566,-286.16828603,0.00014273,2]
[353683088,1739988652575,-500.0,0.00014273,2]
[353683090,1739988652586,-741.51,0.00014273,2]
[353683092,1739988652595,-674.11,0.00014273,2]
[353683094,1739988652606,-500.0,0.00014273,2]
[353683096,1739988652616,-337.50101426,0.00014273,2]
[353683098,1739988652626,-500.0,0.00014273,2]
[353683100,1739988652636,-500.0,0.00014273,2]
[353683102,1739988652648,-709.3,0.00014273,2]
[353683104,1739988652659,-500.0,0.00014273,2]
[353683106,1739988652669,-634.2,0.00014273,2]
[353683108,1739988652679,-500.0,0.00014273,2]
[353683110,1739988652689,-500.0,0.00014273,2]
[353683112,1739988652699,-504.41,0.00014273,2]
[353683114,1739988652709,-589.83,0.00014273,2]
[353683115,1739988652718,-23447.01,0.00014273,2]
[353683117,1739988652728,-500.0,0.00014273,2]
[353683119,1739988652738,-903.6,0.00014273,2]
[353683121,1739988652748,-500.0,0.00014273,2]
[353683123,1739988652758,-661.75,0.00014273,2]
[353683125,1739988652768,-560.56,0.00014273,2]
[353683128,1739988652778,-952.78,0.00014273,2]
[353683129,1739988652787,-2315.57,0.00014273,2]
[353683131,1739988652797,-3025.53,0.00014273,2]
[353683133,1739988652807,-1175.6,0.00014273,2]
[353683135,1739988652816,-500.0,0.00014273,2]
[353683137,1739988652826,-500.0,0.00014273,2]
[353683139,1739988652835,-979.27,0.00014273,2]
[353683141,1739988652844,-500.0,0.00014273,2]
[353683143,1739988652854,-8610.83,0.00014273,2]
[353683145,1739988652864,-363.40429969,0.00014273,2]
[353683147,1739988652874,-587.77,0.00014273,2]
[353683149,1739988652883,-981.23,0.00014273,2]
[353683150,1739988652892,-1054.51,0.00014273,2]
[353683151,1739988652902,-500.0,0.00014273,2]
[353683152,1739988652911,-500.0,0.00014273,2]
[353683153,1739988652922,-500.0,0.00014273,2]
[353683154,1739988652931,-327.14,0.00014273,2]
[353683155,1739988652941,-481.39970288,0.00014273,2]
[353683156,1739988652951,-500.0,0.00014273,2]
[353683157,1739988652961,-707.81,0.00014273,2]
[353683158,1739988652973,-2015.79,0.00014273,2]
[353683159,1739988652983,-500.0,0.00014273,2]
[353683160,1739988652994,-500.0,0.00014273,2]
[353683161,1739988653004,-1163.81,0.00014273,2]
[353683162,1739988653014,-500.0,0.00014273,2]
[353683163,1739988653024,-500.0,0.00014273,2]
[353683164,1739988653034,-500.0,0.00014273,2]
[353683165,1739988653044,-2382.21,0.00014273,2]
[353683166,1739988653055,-6044.15,0.00014273,2]
[353683167,1739988653064,-1011.0,0.00014273,2]
[353683168,1739988653075,-500.0,0.00014273,2]
[353683169,1739988653085,-1268.26,0.00014273,2]
[353683170,1739988653095,-500.0,0.00014273,2]
[353683171,1739988653171,-2033.33,0.00014273,2]
[353683172,1739988653192,-500.0,0.00014273,2]
[353683173,1739988653202,-500.0,0.00014273,2]
[353683174,1739988653212,-1189.52,0.00014273,2]
[353683175,1739988653223,-2055.1,0.00014273,2]
[353683176,1739988653232,-500.0,0.00014273,2]
[353683177,1739988653242,-1101.67,0.00014273,2]
[353683178,1739988653252,-1533.09,0.00014273,2]
[353683179,1739988653262,-7584.55,0.00014273,2]
[353683180,1739988653273,-2979.97,0.00014273,2]
[353683181,1739988653282,-500.0,0.00014273,2]
[353683182,1739988653292,-500.0,0.00014273,2]
[353683183,1739988653302,-633.93,0.00014273,2]
[353683184,1739988653311,-703.24,0.00014273,2]
[353683185,1739988653321,-751.62,0.00014273,2]
[353683186,1739988653331,-7438.69753278,0.00014295,2]
[353683187,1739988653342,-151.0,0.000143,2]
[353683188,1739988653381,-151.0,0.000143,2]
[353683189,1739988653394,-500.0,0.00014356,2]
[353683190,1739988653403,-741.51,0.00014356,2]
[353683191,1739988653413,-674.11,0.00014356,2]
[353683192,1739988653424,-500.0,0.00014356,2]
[353683193,1739988653433,-500.0,0.00014356,2]
[353683194,1739988653445,-500.0,0.00014356,2]
[353683195,1739988653455,-709.3,0.00014356,2]
[353683196,1739988653465,-500.0,0.00014356,2]
[353683197,1739988653475,-634.2,0.00014356,2]
[353683198,1739988653486,-500.0,0.00014356,2]
[353683199,1739988653496,-500.0,0.00014356,2]
[353683200,1739988653507,-504.41,0.00014356,2]
[353683201,1739988653517,-589.83,0.00014356,2]
[353683202,1739988653527,-23447.01,0.00014356,2]
[353683203,1739988653536,-511.26,0.00014356,2]
[353683204,1739988653546,-903.6,0.00014356,2]
[353683205,1739988653555,-500.0,0.00014356,2]
[353683206,1739988653566,-661.75,0.00014356,2]
[353683207,1739988653576,-560.56,0.00014356,2]
[353683208,1739988653587,-952.78,0.00014356,2]
[353683209,1739988653597,-2315.57,0.00014356,2]
[353683210,1739988653607,-3025.53,0.00014356,2]
[353683211,1739988653616,-1175.6,0.00014356,2]
[353683212,1739988653627,-500.0,0.00014356,2]
[353683213,1739988653637,-500.0,0.00014356,2]
[353683214,1739988653647,-979.27,0.00014356,2]
[353683215,1739988653661,-500.0,0.00014356,2]
[353683216,1739988653670,-8610.83,0.00014356,2]
[353683217,1739988653679,-587.77,0.00014356,2]
[353683218,1739988653689,-981.23,0.00014356,2]
[353683219,1739988653700,-1054.51,0.00014356,2]
[353683220,1739988653709,-500.0,0.00014356,2]
[353683221,1739988653719,-186.37026402,0.00014356,2]
[353683222,1739988653728,-500.0,0.00014356,2]
[353683223,1739988653739,-500.0,0.00014356,2]
[353683224,1739988653748,-707.81,0.00014356,2]
[353683225,1739988653758,-2015.79,0.00014356,2]
[353683226,1739988653768,-192.03845176,0.00014356,2]
[353683227,1739988653778,-500.0,0.00014356,2]
[353683228,1739988653789,-1163.81,0.00014356,2]
[353683229,1739988653798,-500.0,0.00014356,2]
[353683230,1739988653808,-500.0,0.00014356,2]
[353683231,1739988653818,-500.0,0.00014356,2]
[353683232,1739988653829,-2382.21,0.00014356,2]
[353683233,1739988653839,-6044.15,0.00014356,2]
[353683234,1739988653848,-1011.0,0.00014356,2]
[353683235,1739988653859,-500.0,0.00014356,2]
[353683236,1739988653870,-1268.26,0.00014356,2]
[353683237,1739988653879,-500.0,0.00014356,2]
[353683238,1739988653890,-2033.33,0.00014356,2]
[353683239,1739988653900,-500.0,0.00014356,2]
[353683240,1739988653912,-1189.52,0.00014356,2]
[353683241,1739988653922,-2055.1,0.00014356,2]
[353683242,1739988653931,-500.0,0.00014356,2]
[353683243,1739988653941,-1101.67,0.00014356,2]
[353683244,1739988653950,-1533.09,0.00014356,2]
[353683245,1739988653960,-7584.55,0.00014356,2]
[353683246,1739988653970,-500.0,0.00014356,2]
[353683247,1739988653979,-2979.97,0.00014356,2]
[353683248,1739988653989,-500.0,0.00014356,2]
[353683249,1739988653999,-633.93,0.00014356,2]
[353683250,1739988654008,-703.24,0.00014356,2]
[353683251,1739988654018,-751.62,0.00014356,2]
[353683252,1739988654027,-151.0,0.000144,2]
[353683253,1739988654037,-151.0,0.000144,2]
[353683254,1739988654047,-151.0,0.000144,2]
[353683255,1739988654057,-179.67658215,0.000144,2]
[353683256,1739988654067,-500.0,0.00014438,2]
[353683257,1739988654075,-741.51,0.00014438,2]
[353683258,1739988654086,-674.11,0.00014438,2]
[353683259,1739988654095,-500.0,0.00014438,2]
[353683260,1739988654105,-500.0,0.00014438,2]
[353683261,1739988654115,-500.0,0.00014438,2]
[353683262,1739988654125,-709.3,0.00014438,2]
[353683263,1739988654135,-500.0,0.00014438,2]
[353683264,1739988654144,-634.2,0.00014438,2]
[353683265,1739988654154,-461.97191629,0.00014438,2]
[353683266,1739988654163,-500.0,0.00014438,2]
[353683267,1739988654173,-504.41,0.00014438,2]
[353683268,1739988654183,-589.83,0.00014438,2]
[353683269,1739988654193,-23447.01,0.00014438,2]
[353683270,1739988654203,-903.6,0.00014438,2]
[353683271,1739988654213,-500.0,0.00014438,2]
[353683272,1739988654223,-661.75,0.00014438,2]
[353683273,1739988654233,-560.56,0.00014438,2]
[353683274,1739988654242,-952.78,0.00014438,2]
[353683275,1739988654252,-2315.57,0.00014438,2]
[353683276,1739988654262,-3025.53,0.00014438,2]
[353683277,1739988654271,-1175.6,0.00014438,2]
[353683278,1739988654281,-500.0,0.00014438,2]
[353683279,1739988654290,-399.35108214,0.00014438,2]
[353683280,1739988654302,-979.27,0.00014438,2]
[353683281,1739988654312,-500.0,0.00014438,2]
[353683282,1739988654321,-8610.83,0.00014438,2]
[353683283,1739988654330,-587.77,0.00014438,2]
[353683284,1739988654340,-981.23,0.00014438,2]
[353683285,1739988654350,-1054.51,0.00014438,2]
[353683286,1739988654359,-500.0,0.00014438,2]
[353683287,1739988654369,-500.0,0.00014438,2]
[353683288,1739988654379,-500.0,0.00014438,2]
[353683289,1739988654388,-707.81,0.00014438,2]
[353683290,1739988654399,-2015.79,0.00014438,2]
[353683291,1739988654408,-500.0,0.00014438,2]
[353683292,1739988654419,-1163.81,0.00014438,2]
[353683293,1739988654430,-500.0,0.00014438,2]
[353683294,1739988654440,-500.0,0.00014438,2]
[353683295,1739988654450,-500.0,0.00014438,2]
[353683296,1739988654460,-2382.21,0.00014438,2]
[353683297,1739988654470,-6044.15,0.00014438,2]
[353683298,1739988654479,-1011.0,0.00014438,2]
[353683299,1739988654491,-500.0,0.00014438,2]
[353683300,1739988654501,-1268.26,0.00014438,2]
[353683301,1739988654510,-500.0,0.00014438,2]
[353683302,1739988654520,-2033.33,0.00014438,2]
[353683303,1739988654530,-423.99428323,0.00014438,2]
[353683304,1739988654540,-1189.52,0.00014438,2]
[353683305,1739988654551,-2055.1,0.00014438,2]
[353683306,1739988654561,-500.0,0.00014438,2]
[353683307,1739988654571,-1101.67,0.00014438,2]
[353683308,1739988654581,-1533.09,0.00014438,2]
[353683309,1739988654591,-7584.55,0.00014438,2]
[353683310,1739988654601,-500.0,0.00014438,2]
[353683311,1739988654610,-2979.97,0.00014438,2]
[353683312,1739988654620,-500.0,0.00014438,2]
[353683313,1739988654630,-633.93,0.00014438,2]
[353683314,1739988654639,-703.24,0.00014438,2]
[353683315,1739988654649,-751.62,0.00014438,2]
[353683317,1739988654662,-800.0,0.00014438,2]
[353683319,1739988654672,-151.0,0.000145,2]
[353683321,1739988654682,-500.0,0.0001452,2]
[353683322,1739988654691,-741.51,0.0001452,2]
[353683324,1739988654703,-674.11,0.0001452,2]
[353683326,1739988654713,-500.0,0.0001452,2]
[353683328,1739988654722,-500.0,0.0001452,2]
[353683335,1739988654802,-500.0,0.0001452,2]
[353683337,1739988654812,-709.3,0.0001452,2]
[353683339,1739988654822,-500.0,0.0001452,2]
[353683340,1739988654831,-634.2,0.0001452,2]
[353683341,1739988654841,-500.0,0.0001452,2]
[353683342,1739988654850,-504.41,0.0001452,2]
[353683343,1739988654859,-589.83,0.0001452,2]
[353683344,1739988654869,-23447.01,0.0001452,2]
[353683345,1739988654879,-903.6,0.0001452,2]
[353683346,1739988654889,-661.75,0.0001452,2]
[353683347,1739988654899,-560.56,0.0001452,2]
[353683348,1739988654908,-952.78,0.0001452,2]
[353683349,1739988654918,-2315.57,0.0001452,2]
[353683350,1739988654927,-3025.53,0.0001452,2]
[353683351,1739988654937,-1175.6,0.0001452,2]
[353683352,1739988654947,-500.0,0.0001452,2]
[353683353,1739988654957,-979.27,0.0001452,2]
[353683354,1739988654966,-500.0,0.0001452,2]
[353683355,1739988654976,-8610.83,0.0001452,2]
[353683356,1739988654986,-587.77,0.0001452,2]
[353683357,1739988654996,-981.23,0.0001452,2]
[353683358,1739988655005,-1054.51,0.0001452,2]
[353683359,1739988655015,-500.0,0.0001452,2]
[353683360,1739988655024,-500.0,0.0001452,2]
[353683361,1739988655034,-500.0,0.0001452,2]
[353683362,1739988655045,-707.81,0.0001452,2]
[353683363,1739988655055,-2015.79,0.0001452,2]
[353683364,1739988655065,-500.0,0.0001452,2]
[353683365,1739988655075,-1163.81,0.0001452,2]
[353683366,1739988655085,-500.0,0.0001452,2]
[353683367,1739988655094,-500.0,0.0001452,2]
[353683368,1739988655104,-500.0,0.0001452,2]
[353683369,1739988655114,-2382.21,0.0001452,2]
[353683370,1739988655124,-6044.15,0.0001452,2]
[353683371,1739988655134,-1011.0,0.0001452,2]
[353683372,1739988655144,-500.0,0.0001452,2]
[353683373,1739988655153,-1268.26,0.0001452,2]
[353683374,1739988655163,-500.0,0.0001452,2]
[353683375,1739988655172,-2033.33,0.0001452,2]
[353683376,1739988655182,-1189.52,0.0001452,2]
[353683377,1739988655192,-2055.1,0.0001452,2]
[353683378,1739988655202,-500.0,0.0001452,2]
[353683379,1739988655211,-1101.67,0.0001452,2]
[353683380,1739988655223,-1533.09,0.0001452,2]
[353683381,1739988655233,-7584.55,0.0001452,2]
[353683382,1739988655242,-2979.97,0.0001452,2]
[353683383,1739988655252,-500.0,0.0001452,2]
[353683384,1739988655261,-500.0,0.0001452,2]
[353683385,1739988655271,-633.93,0.0001452,2]
[353683386,1739988655280,-703.24,0.0001452,2]
[353683387,1739988655291,-751.62,0.0001452,2]
[353683388,1739988655301,-905.76027442,0.00014543,2]
[353683389,1739988655311,-151.0,0.000146,2]
[353683390,1739988655320,-500.0,0.00014602,2]
[353683391,1739988655330,-741.51,0.00014602,2]
[353683392,1739988655340,-674.11,0.00014602,2]
[353683394,1739988655350,-500.0,0.00014602,2]
[353683395,1739988655359,-500.0,0.00014602,2]
[353683397,1739988655369,-500.0,0.00014602,2]
[353683399,1739988655380,-709.3,0.00014602,2]
[353683401,1739988655389,-500.0,0.00014602,2]
[353683402,1739988655399,-634.2,0.00014602,2]
[353683403,1739988655409,-500.0,0.00014602,2]
[353683405,1739988655419,-504.41,0.00014602,2]
[353683407,1739988655430,-589.83,0.00014602,2]
[353683409,1739988655440,-23447.01,0.00014602,2]
[353683411,1739988655450,-903.6,0.00014602,2]
[353683413,1739988655460,-661.75,0.00014602,2]
[353683415,1739988655471,-560.56,0.00014602,2]
[353683417,1739988655481,-952.78,0.00014602,2]
[353683419,1739988655491,-2315.57,0.00014602,2]
[353683421,1739988655501,-3025.53,0.00014602,2]
[353683423,1739988655510,-1175.6,0.00014602,2]
[353683425,1739988655521,-500.0,0.00014602,2]
[353683428,1739988655531,-979.27,0.00014602,2]
[353683430,1739988655540,-500.0,0.00014602,2]
[353683431,1739988655550,-8610.83,0.00014602,2]
[353683433,1739988655559,-587.77,0.00014602,2]
[353683434,1739988655569,-981.23,0.00014602,2]
[353683435,1739988655579,-1054.51,0.00014602,2]
[353683436,1739988655589,-500.0,0.00014602,2]
[353683437,1739988655599,-500.0,0.00014602,2]
[353683438,1739988655609,-500.0,0.00014602,2]
[353683439,1739988655618,-707.81,0.00014602,2]
[353683440,1739988655628,-2015.79,0.00014602,2]
[353683441,1739988655638,-500.0,0.00014602,2]
[353683442,1739988655651,-1163.81,0.00014602,2]
[353683443,1739988655660,-500.0,0.00014602,2]
[353683444,1739988655670,-500.0,0.00014602,2]
[353683445,1739988655679,-500.0,0.00014602,2]
[353683446,1739988655691,-2382.21,0.00014602,2]
[353683447,1739988655702,-6044.15,0.00014602,2]
[353683448,1739988655711,-1011.0,0.00014602,2]
[353683449,1739988655721,-500.0,0.00014602,2]
[353683450,1739988655733,-1268.26,0.00014602,2]
[353683451,1739988655742,-500.0,0.00014602,2]
[353683452,1739988655751,-2033.33,0.00014602,2]
[353683453,1739988655761,-1189.52,0.00014602,2]
[353683454,1739988655772,-2055.1,0.00014602,2]
[353683455,1739988655782,-229.2,0.00014602,2]
[353683456,1739988655791,-1101.67,0.00014602,2]
[353683457,1739988655800,-1533.09,0.00014602,2]
[353683458,1739988655810,-7584.55,0.00014602,2]
[353683459,1739988655820,-2979.97,0.00014602,2]
[353683460,1739988655830,-500.0,0.00014602,2]
[353683461,1739988655839,-500.0,0.00014602,2]
[353683462,1739988655849,-633.93,0.00014602,2]
[353683463,1739988655859,-703.24,0.00014602,2]
[353683464,1739988655870,-751.62,0.00014602,2]
[353683465,1739988655879,-244.0,0.00014627,2]
[353683466,1739988655889,-500.0,0.00014684,2]
[353683467,1739988655899,-741.51,0.00014684,2]
[353683468,1739988655912,-674.11,0.00014684,2]
[353683469,1739988655922,-500.0,0.00014684,2]
[353683470,1739988655932,-500.0,0.00014684,2]
[353683471,1739988655942,-500.0,0.00014684,2]
[353683472,1739988655952,-709.3,0.00014684,2]
[353683473,1739988655962,-500.0,0.00014684,2]
[353683474,1739988655972,-634.2,0.00014684,2]
[353683475,1739988655982,-500.0,0.00014684,2]
[353683476,1739988655991,-504.41,0.00014684,2]
[353683477,1739988656001,-589.83,0.00014684,2]
[353683478,1739988656011,-23447.01,0.00014684,2]
[353683479,1739988656020,-903.6,0.00014684,2]
[353683480,1739988656031,-661.75,0.00014684,2]
[353683481,1739988656040,-560.56,0.00014684,2]
[353683482,1739988656050,-952.78,0.00014684,2]
[353683483,1739988656060,-2315.57,0.00014684,2]
[353683484,1739988656070,-3025.53,0.00014684,2]
[353683485,1739988656079,-1175.6,0.00014684,2]
[353683487,1739988656089,-500.0,0.00014684,2]
[353683488,1739988656098,-979.27,0.00014684,2]
[353683489,1739988656109,-500.0,0.00014684,2]
[353683490,1739988656119,-8610.83,0.00014684,2]
[353683491,1739988656128,-587.77,0.00014684,2]
[353683492,1739988656138,-981.23,0.00014684,2]
[353683494,1739988656147,-1054.51,0.00014684,2]
[353683496,1739988656157,-500.0,0.00014684,2]
[353683498,1739988656167,-279.25486826,0.00014684,2]
[353683500,1739988656177,-325.42518195,0.00014684,2]
[353683508,1739988656253,-707.81,0.00014684,2]
[353683511,1739988656263,-2015.79,0.00014684,2]
[353683513,1739988656273,-500.0,0.00014684,2]
[353683515,1739988656283,-1163.81,0.00014684,2]
[353683517,1739988656292,-535.96498108,0.00014684,2]
[353683518,1739988656302,-500.0,0.00014684,2]
[353683521,1739988656313,-500.0,0.00014684,2]
[353683522,1739988656323,-2382.21,0.00014684,2]
[353683525,1739988656334,-6044.15,0.00014684,2]
[353683526,1739988656343,-1011.0,0.00014684,2]
[353683529,1739988656354,-500.0,0.00014684,2]
[353683531,1739988656365,-1268.26,0.00014684,2]
[353683533,1739988656375,-370.0349384,0.00014684,2]
[353683535,1739988656385,-2033.33,0.00014684,2]
[353683537,1739988656395,-1189.52,0.00014684,2]
[353683539,1739988656405,-2055.1,0.00014684,2]